bitfinex/quotes_ETHUSD_20250326
["timestamp","ask_amount","ask_price","bid_price","bid_amount"]
[1742984204657,0.03831764,2072.2,2072.0,4.499]
[1742984208360,4.86410764,2072.2,2072.0,4.499]
[1742984208518,0.03831764,2072.2,2072.0,4.499]
[1742984208818,0.03831764,2072.2,2072.0,18.999]
[1742984209153,0.03831764,2072.2,2072.0,4.499]
[1742984210817,6.87708357,2072.2,2072.0,4.499]
[1742984211155,0.7729,2072.1,2072.0,4.499]
[1742984211357,5.59892,2072.1,2072.0,4.499]
[1742984211538,4.82654,2071.9,2071.5,20.15478]
[1742984211738,2.01288593,2071.8,2071.6,4.499]
[1742984212118,4.86485764,2071.9,2071.6,4.499]
[1742984213322,0.03831764,2071.9,2071.6,4.499]
[1742984213621,0.03831764,2071.9,2071.6,9.32615]
[1742984214554,4.86483764,2071.9,2071.6,4.499]
[1742984214856,2.77908593,2071.8,2071.6,4.499]
[1742984215029,0.03831764,2071.7,2071.6,14.5]
[1742984215229,2.01288593,2071.8,2071.6,18.999]
[1742984215964,4.82657,2071.9,2071.6,18.999]
[1742984215965,4.86488764,2071.9,2071.6,18.999]
[1742984216259,2.01288593,2071.8,2071.6,18.999]
[1742984216568,0.80451764,2071.7,2071.6,18.999]
[1742984217058,4.82722,2071.6,2071.5,4.499]
[1742984217258,5.59331,2071.7,2071.5,4.499]
[1742984217420,6.83967593,2071.8,2071.5,18.999]
[1742984217616,6.87799357,2071.8,2071.5,18.999]
[1742984218018,2.05120357,2071.8,2071.5,23.82636]
[1742984218221,2.05120357,2071.8,2071.5,18.999]
[1742984219235,2.05120357,2071.8,2071.5,23.82641]
[1742984219424,2.05120357,2071.8,2071.5,18.999]
[1742984219950,2.05120357,2071.8,2071.5,23.82636]
[1742984220269,2.05120357,2071.8,2071.5,12.273708]
[1742984220436,2.05120357,2071.8,2071.5,4.499]
[1742984222401,2.05120357,2071.8,2071.5,9.32633]
[1742984223464,2.01288593,2072.0,2071.7,0.7634]
[1742984223676,2.05120357,2072.0,2071.7,5.59021]
[1742984223952,0.03831764,2072.1,2071.8,9.3276]
[1742984224125,2.05120357,2072.2,2071.9,4.82647]
[1742984224654,4.82607,2072.1,2071.8,4.501]
[1742984224857,2.05120357,2072.0,2071.8,19.001]
[1742984225068,10.90012336,2072.1,2071.8,19.001]
[1742984225069,6.83869593,2072.2,2071.8,19.001]
[1742984225236,2.05120357,2072.2,2071.8,23.82769]
[1742984225425,2.05120357,2072.2,2071.9,4.82639]
[1742984227665,2.05120357,2072.2,2071.8,28.65426]
[1742984228053,2.05120357,2072.2,2071.9,4.82648]
[1742984229169,2.05120357,2072.2,2071.8,23.82757]
[1742984230117,2.05120357,2072.2,2071.8,28.65414]
[1742984230310,2.05120357,2072.2,2071.9,4.82648]
[1742984231230,2.05120357,2072.2,2072.0,4.505]
[1742984231906,6.87709357,2072.2,2072.0,4.505]
[1742984232209,4.82602,2072.1,2072.0,4.505]
[1742984232505,6.83877593,2072.2,2072.0,4.505]
[1742984232711,0.03831764,2072.1,2072.0,4.505]
[1742984232909,2.05120357,2072.2,2072.0,4.505]
[1742984233564,6.87705357,2072.2,2072.0,4.505]
[1742984233906,6.87705357,2072.2,2071.8,4.82669]
[1742984234110,6.87705357,2072.2,2071.9,4.503]
[1742984234311,4.82614,2072.1,2071.9,4.503]
[1742984234609,4.82614,2072.1,2071.5,33.48507]
[1742984234610,4.82653,2071.9,2071.5,33.48507]
[1742984234770,6.87792357,2071.8,2071.5,27.841]
[1742984235115,6.87792357,2071.8,2071.6,4.503]
[1742984235619,6.87792357,2071.8,2071.6,4.508]
[1742984235798,5.62447,2072.0,2071.5,43.145]
[1742984236111,12.50211357,2072.0,2071.7,4.508]
[1742984236313,12.46379593,2072.0,2071.7,4.508]
[1742984236608,0.03831764,2071.9,2071.7,4.508]
[1742984236781,2.05120357,2071.9,2071.7,4.508]
[1742984237629,2.01288593,2071.9,2071.7,4.508]
[1742984238137,0.03831764,2072.0,2071.7,9.33493]
[1742984238428,0.03831764,2072.1,2071.7,6.09889176]
[1742984238654,6.87701357,2072.2,2071.8,20.1409]
[1742984240211,11.70298357,2072.2,2071.8,15.3143]
[1742984240526,4.82604,2072.1,2071.8,15.3143]
[1742984241388,6.87746357,2072.0,2071.8,4.512]
[1742984242225,2.05120357,2072.0,2071.8,4.512]
[1742984243489,2.01288593,2072.0,2071.8,4.512]
[1742984243825,2.01288593,2072.0,2071.9,4.515]
[1742984245129,2.01288593,2072.0,2071.7,4.8269]
[1742984245302,2.01288593,2072.0,2071.9,4.513]
[1742984246124,2.01288593,2072.0,2071.8,14.5]
[1742984246526,2.05120357,2072.0,2071.8,14.5]
[1742984247189,2.05120357,2072.0,2071.7,4.8269]
[1742984247721,2.05120357,2072.0,2071.7,19.3269]
[1742984248751,2.05120357,2072.0,2071.7,17.445605]
[1742984248929,2.05120357,2072.0,2071.7,22.272555]
[1742984249419,2.01288593,2072.0,2071.7,22.272555]
[1742984249612,2.01288593,2072.0,2071.7,19.32695]
[1742984250000,2.05120357,2072.0,2071.7,19.32695]
[1742984250911,2.05120357,2072.0,2071.8,4.508]
[1742984251524,2.05120357,2072.0,2071.8,19.008]
[1742984251700,6.87750357,2072.0,2071.8,19.008]
[1742984251896,12.45567357,2072.0,2071.8,19.008]
[1742984252122,12.41735593,2072.0,2071.8,4.508]
[1742984252315,4.86479764,2071.9,2071.8,4.507]
[1742984253230,0.03831764,2071.9,2071.8,4.507]
[1742984253412,7.62925357,2072.0,2071.8,4.507]
[1742984253837,7.62925357,2072.0,2071.6,5.61824]
[1742984254036,7.62925357,2072.0,2071.8,4.505]
[1742984254447,0.03831764,2071.9,2071.8,4.505]
[1742984256303,4.86479764,2071.9,2071.8,4.505]
[1742984256504,0.03831764,2071.9,2071.8,4.505]
[1742984258402,0.03831764,2071.9,2071.6,4.82715]
[1742984258604,0.03831764,2071.9,2071.7,4.502]
[1742984258943,4.86479764,2071.9,2071.5,4.82733]
[1742984259237,2.01288593,2071.8,2071.6,4.504]
[1742984259941,2.01288593,2071.8,2071.5,4.82733]
[1742984260105,0.03831764,2071.9,2071.6,4.503]
[1742984260304,0.03831764,2071.9,2071.6,10.341105]
[1742984262029,4.86479764,2071.9,2071.6,5.514025]
[1742984263753,4.86479764,2071.9,2071.8,0.9702441]
[1742984264747,4.82695,2071.8,2071.6,4.5]
[1742984265038,6.87815357,2071.7,2071.6,4.5]
[1742984265541,6.87815357,2071.7,2071.4,0.78]
[1742984265746,6.87815357,2071.7,2071.6,4.5]
[1742984266313,6.87815357,2071.7,2071.6,5.4655079]
[1742984266623,7.70895357,2071.7,2071.6,0.9655079]
[1742984267861,4.82603,2072.1,2071.6,0.9655079]
[1742984267862,4.8266,2071.9,2071.6,0.9655079]
[1742984268053,4.86491764,2071.9,2071.6,0.9655079]
[1742984268264,0.03831764,2071.9,2071.6,0.9655079]
[1742984268768,0.03831764,2071.9,2071.6,5.7925679]
[1742984268963,0.03831764,2072.0,2071.6,7.38016769]
[1742984269465,0.03831764,2072.0,2071.7,4.502]
[1742984270768,0.03831764,2072.0,2071.8,4.501]
[1742984273065,0.03831764,2072.0,2071.9,0.806]
[1742984273273,0.03831764,2072.1,2071.9,0.806]
[1742984275274,0.03831764,2072.1,2071.9,2.302057]
[1742984275472,0.03831764,2072.2,2071.9,2.302057]
[1742984275972,0.03831764,2072.2,2071.9,0.806]
[1742984277192,0.03831764,2072.2,2071.9,10.45883]
[1742984277358,0.03831764,2072.3,2072.0,4.82603]
[1742984278481,0.03831764,2072.4,2072.1,5.61926]
[1742984278684,0.03831764,2072.4,2072.1,0.7933]
[1742984279687,0.03831764,2072.4,2072.1,1.75252518]
[1742984280173,0.782,2072.6,2072.1,2.8930257]
[1742984280377,0.03831764,2072.5,2072.1,1.75252518]
[1742984280582,0.03831764,2072.5,2072.1,6.57845518]
[1742984280782,2.01288593,2072.4,2072.1,1.75252518]
[1742984281083,2.01288593,2072.2,2072.1,0.95922518]
[1742984281459,6.83866593,2072.2,2072.0,4.506]
[1742984281691,0.03831764,2072.1,2072.0,4.506]
[1742984281895,0.03831764,2072.1,2071.7,0.7961]
[1742984282047,2.01288593,2072.0,2071.8,4.506]
[1742984282690,2.01288593,2072.0,2071.8,5.45043665]
[1742984285000,0.03831764,2071.9,2071.8,5.45043665]
[1742984285495,0.03831764,2071.9,2071.8,6.25113665]
[1742984285655,0.03831764,2072.0,2071.8,7.35895432]
[1742984285993,0.03831764,2072.0,2071.8,11.07784665]
[1742984286203,0.03831764,2072.2,2072.0,4.82624]
[1742984286386,0.03831764,2072.4,2072.1,0.8007]
[1742984286904,0.03831764,2072.4,2072.1,5.62671]
[1742984287056,7.66263593,2072.3,2071.9,0.8007]
[1742984287396,0.03831764,2072.2,2071.9,12.04596067]
[1742984287698,0.03831764,2072.2,2071.9,7.21955067]
[1742984288257,0.03831764,2072.2,2071.9,7.21949067]
[1742984288455,0.03831764,2072.3,2071.9,7.21949067]
[1742984288697,0.03831764,2072.3,2072.0,4.82621]
[1742984289191,0.03831764,2072.3,2071.9,7.21949067]
[1742984289555,0.03831764,2072.3,2071.9,7.21947067]
[1742984290103,0.03831764,2072.3,2072.0,6.09516073]
[1742984290567,0.03831764,2072.3,2072.0,1.26899073]
[1742984291597,0.03831764,2072.3,2072.0,6.09521073]
[1742984292299,0.03831764,2072.4,2072.1,5.5891]
[1742984292512,0.03831764,2072.6,2072.3,4.82542]
[1742984292796,1.19906977,2072.7,2072.4,0.482542]
[1742984293085,2.01288593,2072.6,2072.3,4.533]
[1742984293390,0.03831764,2072.5,2072.3,4.533]
[1742984293586,0.03831764,2072.5,2072.4,0.98854317]
[1742984296359,2.05120357,2072.6,2072.4,0.98854317]
[1742984298837,2.05120357,2072.6,2072.4,6.26148044]
[1742984299573,2.05120357,2072.6,2072.4,2.26557044]
[1742984300505,2.01288593,2072.6,2072.4,9.91421682]
[1742984301503,0.03831764,2072.7,2072.4,9.91421682]
[1742984301704,6.95791363,2072.8,2072.4,9.91423682]
[1742984301877,2.17184127,2072.8,2072.4,14.73942682]
[1742984302088,2.17184127,2072.8,2072.4,9.91411682]
[1742984302284,2.17184127,2072.8,2072.5,1.26899073]
[1742984302483,6.99624127,2072.8,2072.5,1.26899073]
[1742984302685,2.01288593,2072.6,2072.5,1.26899073]
[1742984303203,0.15895534,2072.8,2072.5,1.716618]
[1742984303404,0.1206377,2072.8,2072.6,4.82477]
[1742984304376,0.1206377,2072.8,2072.6,6.59075939]
[1742984304789,0.1206377,2072.8,2072.6,7.34075939]
[1742984304987,0.1206377,2072.8,2072.6,2.51606939]
[1742984305208,2.13352363,2072.8,2072.6,1.76606939]
[1742984305427,2.13352363,2072.8,2072.6,1.31844212]
[1742984305626,2.13352363,2072.8,2072.5,6.541698]
[1742984305922,2.13352363,2072.8,2072.5,6.541578]
[1742984306128,2.13352363,2072.8,2072.6,14.5]
[1742984306928,2.13352363,2072.8,2072.5,0.44762727]
[1742984307130,6.95796363,2072.8,2072.5,0.44762727]
[1742984307314,2.13352363,2072.8,2072.5,14.94762727]
[1742984307494,2.17184127,2072.8,2072.5,19.77267727]
[1742984307694,6.99629127,2072.8,2072.5,14.94762727]
[1742984307992,0.15895534,2072.8,2072.5,14.94762727]
[1742984308214,2.01288593,2072.7,2072.5,14.94762727]
[1742984308419,2.80498593,2072.7,2072.5,19.03]
[1742984308924,2.84330357,2072.7,2072.5,19.03]
[1742984309831,2.80498593,2072.7,2072.5,19.03]
[1742984310223,2.84330357,2072.7,2072.5,19.03]
[1742984311899,4.98350534,2072.8,2072.5,19.8586]
[1742984312100,2.17184127,2072.8,2072.5,24.68368]
[1742984312313,2.17184127,2072.8,2072.5,25.03268]
[1742984312930,2.17184127,2072.8,2072.5,20.2076]
[1742984313108,2.17184127,2072.8,2072.5,25.03266]
[1742984313516,2.13352363,2072.8,2072.5,25.03266]
[1742984314436,6.95794363,2072.8,2072.5,19.379]
[1742984314732,7.76962618,2072.8,2072.6,0.44736465]
[1742984315239,7.80794382,2072.8,2072.6,0.44736465]
[1742984315444,12.63249382,2072.8,2072.6,14.94736465]
[1742984315616,4.82462,2072.7,2072.6,14.94736465]
[1742984315810,4.82462,2072.7,2072.6,14.5]
[1742984316017,4.82462,2072.7,2072.5,4.879]
[1742984316525,7.67245357,2072.6,2072.5,0.349]
[1742984332749,4.86316764,2072.6,2072.5,0.349]
[1742984333048,1.1264355,2072.6,2072.5,0.349]
[1742984333255,5.98960314,2072.6,2072.5,0.349]
[1742984335863,1.1264355,2072.6,2072.5,0.349]
[1742984336026,4.9450577,2072.8,2072.5,0.349]
[1742984336027,1.2470732,2072.8,2072.5,0.349]
[1742984336232,1.1264355,2072.7,2072.6,0.8197]
[1742984336548,1.1264355,2072.7,2072.5,0.349]
[1742984336748,1.1264355,2072.6,2072.5,0.349]
[1742984336953,1.16475314,2072.6,2072.5,0.7968364]
[1742984337156,5.98960314,2072.6,2072.5,0.7968364]
[1742984337858,5.98960314,2072.6,2072.5,0.349]
[1742984338221,7.08310022,2072.6,2072.5,0.349]
[1742984338818,7.96843912,2072.6,2072.5,0.349]
[1742984339022,5.95666472,2072.6,2072.5,0.349]
[1742984339243,7.96843912,2072.6,2072.5,0.349]
[1742984342328,3.14358912,2072.6,2072.5,0.349]
[1742984342527,2.05009204,2072.6,2072.5,0.349]
[1742984352375,6.87494204,2072.6,2072.5,0.349]
[1742984353286,6.87494204,2072.6,2072.5,0.1079]
[1742984359355,0.03831764,2072.6,2072.5,0.865]
[1742984359584,4.86302764,2072.7,2072.5,0.865]
[1742984360271,4.82485,2072.6,2072.5,0.865]
[1742984360590,4.86302764,2072.7,2072.5,0.865]
[1742984360963,1.12644603,2072.6,2072.5,0.865]
[1742984363852,5.95129603,2072.6,2072.5,0.865]
[1742984364281,5.95129603,2072.6,2072.5,0.1079]
[1742984367301,5.98961367,2072.6,2072.5,0.1079]
[1742984368278,7.64699981,2072.6,2072.5,0.1079]
[1742984368480,7.64699981,2072.6,2072.5,5.1079]
[1742984370960,6.52055378,2072.6,2072.5,5.1079]
[1742984371160,5.98961367,2072.6,2072.5,5.1079]
[1742984372296,4.86316764,2072.6,2072.5,5.1079]
[1742984372465,5.95129603,2072.6,2072.5,5.1079]
[1742984372670,5.98961367,2072.6,2072.5,5.1079]
[1742984377879,5.95129603,2072.6,2072.5,5.1079]
[1742984378619,5.95129603,2072.6,2072.5,5.8762]
[1742984379312,5.95106603,2072.7,2072.5,5.8762]
[1742984379696,5.95109603,2072.7,2072.5,5.8762]
[1742984381091,1.12644603,2072.7,2072.5,0.8762]
[1742984381306,5.95115603,2072.7,2072.5,0.8762]
[1742984382221,5.95115603,2072.7,2072.6,0.95608982]
[1742984382931,5.98947367,2072.7,2072.6,0.95608982]
[1742984385587,5.95115603,2072.7,2072.6,0.95608982]
[1742984386698,4.98335534,2072.8,2072.6,0.95608982]
[1742984386899,1.12644603,2072.7,2072.6,0.95608982]
[1742984387102,1.12644603,2072.7,2072.6,3.0718428]
[1742984387942,4.9450477,2072.8,2072.6,3.0718428]
[1742984388113,1.12644603,2072.7,2072.6,0.95608982]
[1742984388313,1.12644603,2072.7,2072.5,0.8762]
[1742984388511,1.12644603,2072.6,2072.5,0.8762]
[1742984389617,1.12644603,2072.6,2072.5,0.1079]
[1742984390343,4.9450477,2072.8,2072.5,0.1079]
[1742984390504,1.12644603,2072.7,2072.5,0.1079]
[1742984390702,1.12644603,2072.7,2072.5,2.61595]
[1742984390933,1.12644603,2072.6,2072.5,2.61595]
[1742984391844,4.98336534,2072.8,2072.5,3.38295]
[1742984391845,0.15895534,2072.8,2072.5,3.38295]
[1742984392044,1.12644603,2072.7,2072.5,3.38295]
[1742984393137,1.12644603,2072.7,2072.5,8.20801]
[1742984393337,1.12644603,2072.7,2072.5,3.38295]
[1742984394328,0.1206377,2072.8,2072.5,0.8749]
[1742984394525,0.1206377,2072.8,2072.6,14.5]
[1742984394723,0.1206377,2072.8,2072.7,10.12592]
[1742984395233,0.1206377,2072.8,2072.7,5.3013]
[1742984396329,0.1206377,2072.8,2072.7,10.12592]
[1742984396529,0.1206377,2072.8,2072.7,13.08177]
[1742984398150,0.1206377,2072.8,2072.7,27.58177]
[1742984399408,0.1206377,2072.8,2072.7,27.59817]
[1742984400045,0.1206377,2072.8,2072.7,28.5420903]
[1742984401228,0.1206377,2072.8,2072.7,14.0420903]
[1742984401409,0.1206377,2072.8,2072.7,9.2174703]
[1742984402037,0.1206377,2072.8,2072.7,14.0420903]
[1742984404340,0.1206377,2072.8,2072.7,28.5420903]
[1742984406720,0.1206377,2072.8,2072.7,23.7174703]
[1742984406925,0.1206377,2072.8,2072.7,5.4419203]
[1742984408852,0.10784985,2072.8,2072.7,11.0384403]
[1742984409418,0.10784985,2072.8,2072.7,25.5384403]
[1742984414538,1.23429588,2072.8,2072.7,20.7138203]
[1742984415750,1.23429588,2072.8,2072.7,25.5384403]
[1742984416348,0.10784985,2072.8,2072.7,28.58554533]
[1742984418356,0.10784985,2072.8,2072.7,14.08554533]
[1742984418933,0.10784985,2072.8,2072.7,28.58554533]
[1742984428685,0.05,2072.9,2072.8,4.82439]
[1742984428887,0.05,2072.9,2072.8,4.87262532]
[1742984429050,0.05,2072.9,2072.8,5.9178674]
[1742984429250,0.05,2072.9,2072.8,20.4178674]
[1742984429489,0.05,2072.9,2072.8,20.36963208]
[1742984429693,0.05,2072.9,2072.8,22.85597811]
[1742984432290,0.05,2072.9,2072.8,21.72953208]
[1742984432605,0.05,2072.9,2072.8,22.85597811]
[1742984433109,0.05,2072.9,2072.8,23.8346978]
[1742984434986,0.05,2072.9,2072.8,26.8346978]
[1742984435874,0.05,2072.9,2072.8,26.92291525]
[1742984444414,1e-05,2072.9,2072.8,26.92291525]
[1742984445718,1e-05,2072.9,2072.8,54.74091525]
[1742984460724,1e-05,2072.9,2072.8,59.23691525]
[1742984475661,1e-05,2072.9,2072.8,52.80456922]
[1742984475968,1e-05,2072.9,2072.8,56.83177317]
[1742984476159,1e-05,2072.9,2072.8,57.38177317]
[1742984476366,1e-05,2072.9,2072.8,48.20932714]
[1742984476667,1e-05,2072.9,2072.5,0.1079]
[1742984476668,5.58245,2072.6,2072.5,0.1079]
[1742984476872,7.30545867,2072.6,2072.5,0.1079]
[1742984477037,7.53954806,2072.6,2072.5,0.1079]
[1742984477735,3.8177,2072.4,2071.4,4.82759]
[1742984477971,0.8177,2071.4,2071.3,4.82776]
[1742984478466,2.1749819,2071.4,2071.3,14.5]
[1742984478865,7.89015073,2071.4,2071.3,14.5]
[1742984479082,7.92846837,2071.4,2071.3,14.5]
[1742984479371,7.92846837,2071.4,2071.0,4.6]
[1742984479372,0.7567,2071.3,2071.1,4.82818]
[1742984479568,0.22139081,2071.2,2071.1,4.82818]
[1742984479773,0.7567,2071.3,2071.1,4.82818]
[1742984479938,0.2214895,2071.2,2071.1,4.82818]
[1742984480272,0.7567,2071.3,2071.1,4.82818]
[1742984480477,1.52035225,2071.3,2071.2,4.82811]
[1742984480645,0.22146483,2071.2,2071.1,4.82818]
[1742984480845,0.7567,2071.3,2071.2,4.82811]
[1742984481244,0.96929025,2071.3,2071.2,4.82811]
[1742984481777,0.96929025,2071.3,2071.2,9.42711]
[1742984481966,2.98325511,2071.3,2071.0,19.32855]
[1742984482162,3.76435262,2071.3,2071.0,19.32855]
[1742984482371,3.76435262,2071.3,2071.0,24.15696]
[1742984482541,3.76435262,2071.3,2071.0,19.32841]
[1742984483079,1.75038776,2071.3,2071.1,4.82821]
[1742984483577,0.96929025,2071.3,2071.2,4.82811]
[1742984483779,0.7683,2071.6,2071.5,4.82741]
[1742984483950,0.7683,2071.9,2071.7,4.8268]
[1742984484152,0.7683,2071.9,2071.8,4.82672]
[1742984484351,0.7683,2072.2,2072.0,4.82622]
[1742984484551,0.7683,2072.2,2072.1,14.5]
[1742984484751,1.53289025,2072.2,2072.1,14.5]
[1742984485158,3.54685511,2072.2,2072.1,14.5]
[1742984486860,3.54685511,2072.2,2072.0,4.608]
[1742984487261,3.54685511,2072.2,2072.0,19.108]
[1742984488182,8.37272511,2072.2,2072.0,4.608]
[1742984488483,1.52016954,2072.1,2072.0,4.608]
[1742984488984,6.34618954,2072.1,2072.0,4.608]
[1742984489161,1.52016954,2072.1,2072.0,4.608]
[1742984490706,7.09968954,2072.1,2072.0,0.98302642]
[1742984491004,7.09968954,2072.1,2071.6,4.599]
[1742984491005,4.82656,2071.9,2071.6,4.599]
[1742984491298,0.19698772,2071.8,2071.6,19.099]
[1742984492592,0.19698772,2071.8,2071.6,23.92612]
[1742984493088,0.19698772,2071.8,2071.7,4.82695]
[1742984493456,7.6318225,2072.1,2071.7,4.82695]
[1742984493681,0.19672884,2071.8,2071.7,4.82695]
[1742984493857,1.24576225,2072.0,2071.7,4.82695]
[1742984494063,0.19672884,2071.8,2071.7,4.82695]
[1742984494274,0.7535,2072.1,2071.8,4.82665]
[1742984494800,5.57953,2072.1,2071.8,19.32665]
[1742984494969,1.04436976,2072.0,2071.8,14.5]
[1742984495159,5.87061976,2072.0,2071.8,14.5]
[1742984495354,1.04436976,2072.0,2071.8,14.5]
[1742984495759,1.04436976,2072.0,2071.8,19.3267]
[1742984496457,1.04436976,2072.0,2071.8,14.5]
[1742984496999,0.19801671,2071.9,2071.8,14.5]
[1742984498089,6.39457861,2071.9,2071.6,4.599]
[1742984498294,0.7553,2071.8,2071.6,4.599]
[1742984498496,0.7553,2071.8,2071.7,14.5]
[1742984498790,0.7553,2071.8,2071.6,4.599]
[1742984498791,5.77993176,2071.8,2071.4,9.4386]
[1742984498996,2.01396486,2071.7,2071.4,4.611]
[1742984499192,5.02491181,2071.6,2071.4,4.611]
[1742984499399,0.19770181,2071.6,2071.4,19.111]
[1742984500193,5.02492181,2071.6,2071.4,19.111]
[1742984500406,7.67347486,2071.5,2071.4,4.611]
[1742984500598,7.87011591,2071.5,2071.4,4.611]
[1742984500762,9.2219225,2071.5,2071.4,4.611]
[1742984505134,9.2219225,2071.5,2071.1,20.29807404]
[1742984505318,6.84194486,2071.3,2070.9,4.8286]
[1742984505518,7.79691175,2071.3,2070.9,4.8286]
[1742984505828,0.19336679,2071.2,2071.0,14.5]
[1742984506139,5.05981443,2071.2,2071.0,14.5]
[1742984506301,4.86644764,2071.2,2071.0,14.5]
[1742984506505,0.19320008,2071.1,2070.9,4.61]
[1742984506732,1.45570425,2071.1,2070.9,4.61]
[1742984507623,1.45570425,2071.1,2070.6,4.608]
[1742984507624,2.78496486,2071.0,2070.6,4.608]
[1742984507827,2.8232825,2071.0,2070.7,4.82918]
[1742984508090,0.19227677,2070.9,2070.7,19.32918]
[1742984508291,2.78496486,2071.0,2070.7,19.32918]
[1742984508601,0.19227677,2070.9,2070.7,14.5]
[1742984508934,0.19227677,2070.9,2070.8,4.607]
[1742984509091,0.19227677,2070.9,2070.3,4.83021]
[1742984509092,0.19227677,2070.9,2070.6,14.26692]
[1742984509293,0.19227677,2070.9,2070.6,9.43737]
[1742984509535,0.19227677,2070.9,2070.7,14.5]
[1742984510736,0.7887,2070.8,2070.5,4.8296]
[1742984511095,0.19133842,2070.7,2070.5,4.8296]
[1742984511295,0.19133842,2070.7,2070.6,14.5]
[1742984511527,0.7887,2070.8,2070.6,14.5]
[1742984511772,0.19133842,2070.7,2070.6,14.5]
[1742984512079,0.7887,2070.8,2070.6,14.5]
[1742984512227,0.19133842,2070.7,2070.6,14.5]
[1742984512436,0.19133842,2070.7,2070.5,4.63]
[1742984512647,9.00201791,2070.8,2070.5,4.63]
[1742984512847,0.19123329,2070.6,2070.5,4.63]
[1742984513061,6.98805305,2070.8,2070.5,4.63]
[1742984513270,0.18895198,2070.6,2070.5,4.63]
[1742984513574,0.70263707,2070.7,2070.5,4.63]
[1742984513737,0.18895198,2070.6,2070.5,4.63]
[1742984515375,5.61783,2070.8,2070.5,4.63]
[1742984515586,0.18905711,2070.7,2070.5,5.58838611]
[1742984515758,5.65614764,2070.8,2070.5,5.58838611]
[1742984515955,5.77238711,2070.7,2070.3,19.33003]
[1742984516656,5.81070475,2070.7,2070.3,19.33003]
[1742984516859,4.82955,2070.6,2070.3,14.5]
[1742984517056,5.77238711,2070.7,2070.3,14.5]
[1742984517269,0.18701402,2070.5,2070.3,19.3302]
[1742984517475,1.42484806,2070.6,2070.3,19.3302]
[1742984517677,1.42484806,2070.6,2070.4,0.96331826]
[1742984518567,1.42484806,2070.6,2070.5,14.5]
[1742984518748,1.38653042,2070.6,2070.5,14.5]
[1742984518955,5.62164764,2070.7,2070.5,14.5]
[1742984519906,5.62164764,2070.7,2070.4,0.96331826]
[1742984520397,5.62164764,2070.7,2070.4,15.46331826]
[1742984520698,0.79231764,2070.7,2070.4,15.46331826]
[1742984520852,0.18711916,2070.6,2070.4,20.29323826]
[1742984521055,0.18711916,2070.6,2070.4,15.46331826]
[1742984522085,0.18711916,2070.6,2070.4,20.29328826]
[1742984522289,0.18711916,2070.6,2070.4,15.46331826]
[1742984523079,0.60789523,2070.7,2070.4,15.46331826]
[1742984523277,0.17142076,2070.5,2070.4,15.46331826]
[1742984523791,5.43729523,2070.7,2070.4,15.46331826]
[1742984524088,0.1715259,2070.6,2070.4,15.46331826]
[1742984526097,0.9793259,2070.6,2070.4,15.46331826]
[1742984527391,0.1715259,2070.6,2070.5,4.82975]
[1742984527578,0.7983,2071.0,2070.5,5.68974147]
[1742984527890,0.17028502,2070.9,2070.8,4.82896]
[1742984528095,0.17028502,2070.9,2070.8,19.32896]
[1742984528401,0.7983,2071.2,2070.9,4.82873]
[1742984529687,0.7983,2071.2,2070.8,19.32899]
[1742984530611,2.81226486,2071.2,2070.8,24.15789]
[1742984531109,0.7983,2071.2,2070.9,4.82874]
[1742984531319,0.15456367,2071.1,2070.8,22.07562153]
[1742984531484,0.15456367,2071.1,2070.8,12.40453153]
[1742984531703,0.15456367,2071.1,2070.9,4.8288]
[1742984532096,0.15456367,2071.1,2070.8,7.57562153]
[1742984533111,0.15456367,2071.1,2070.9,4.82874]
[1742984533916,0.15456367,2071.1,2070.8,7.57562153]
[1742984534227,0.15456367,2071.1,2070.8,5.78972156]
[1742984534577,0.15456367,2071.1,2070.8,10.61867156]
[1742984535116,0.15456367,2071.1,2070.8,5.78972156]
[1742984538193,0.15456367,2071.1,2070.8,0.96082156]
[1742984538828,0.15456367,2071.1,2070.8,5.56682156]
[1742984540954,0.15456367,2071.1,2070.8,18.19727572]
[1742984541130,0.15456367,2071.1,2070.8,13.36825572]
[1742984542226,0.15456367,2071.1,2070.8,27.86825572]
[1742984544400,0.15456367,2071.1,2070.8,24.89574156]
[1742984546540,4.98299367,2071.1,2070.8,0.96082156]
[1742984547446,0.15456367,2071.1,2070.8,0.96082156]
[1742984550317,4.98291367,2071.1,2070.8,0.96082156]
[1742984550516,1.26233685,2071.0,2070.8,0.96082156]
[1742984550932,0.15670569,2070.9,2070.8,0.96082156]
[1742984551348,4.82835,2071.1,2070.8,0.96082156]
[1742984551953,5.80745018,2071.0,2070.8,0.96082156]
[1742984552613,10.63620018,2071.0,2070.5,4.82965]
[1742984552810,4.82884,2070.9,2070.5,4.82965]
[1742984553044,0.15664997,2070.8,2070.5,4.82965]
[1742984554620,0.15664997,2070.8,2070.6,0.97515458]
[1742984555447,0.8148,2070.7,2070.6,0.97515458]
[1742984555653,0.9720842,2070.7,2070.6,0.97515458]
[1742984556357,5.8014542,2070.7,2070.4,4.605]
[1742984557058,5.8014542,2070.7,2070.4,4.606]
[1742984557355,0.1572842,2070.7,2070.4,9.43596]
[1742984557656,4.82912,2070.8,2070.4,9.43596]
[1742984557861,0.15601243,2070.6,2070.4,9.43596]
[1742984558042,6.07869349,2070.8,2070.4,9.43596]
[1742984558362,0.14302352,2070.7,2070.5,0.94399473]
[1742984558656,6.07869349,2070.8,2070.5,0.94399473]
[1742984558857,0.14291841,2070.6,2070.5,0.94399473]
[1742984559165,6.07869349,2070.8,2070.5,0.94399473]
[1742984559462,0.14291841,2070.6,2070.5,0.94399473]
[1742984559661,0.14291841,2070.6,2070.5,5.77374473]
[1742984559822,0.14291841,2070.6,2070.5,7.78770959]
[1742984560018,0.14291841,2070.6,2070.5,7.83600198]
[1742984560242,4.82951,2070.6,2070.5,0.94399473]
[1742984560542,5.73234031,2070.6,2070.5,0.94399473]
[1742984560729,0.90283031,2070.6,2070.0,28.608]
[1742984560929,4.83032,2070.3,2070.1,5.56550528]
[1742984561455,0.14097544,2070.2,2070.1,5.56550528]
[1742984561784,4.82999,2070.4,2070.1,5.56550528]
[1742984561959,0.1406297,2070.2,2070.1,5.56650528]